Workbook

Sheet 選定書
E2: 密閉式膨張タンク選定フォーマット
K4: 様
B6: 件名
O7: =TODAY() -> 2024-05-31
B9: 密閉タンク位置図 | K9: 選定に必要なデｰタ
K12: １． | L12: 給湯用､空調用の別 | N12: 給湯用
K14: ２． | L14: 鋼板製､ステンレス製の別 | N14: 鋼板製
K16: ３． | L16: システム全水量 | N16: 5000 | O16: ㍑
N17: 水
L18: 給水管の逆止弁以降のすべての配管と機器の
L19: 保有水量を合計して求めます。
L20: 算出にあたっては、１０％の余裕を見てください。
K22: ４． | L22: システム水初期温度 | N22: 5 | O22: ℃
K24: ５． | L24: システム最高設定温度 | N24: 60 | O24: ℃
K26: ６． | L26: 補給水圧力 | N26: 0.1 | O26: ＭＰａ・Ｇ
L27: 給湯用の場合
L28: システム水最高点までの高さ Ｈ [ｍ] ÷ １００
M29: + 器具に必要な圧力
N30: （最低 ０．０７ＭＰａ）
L31: 空調用の場合
L32: システム水最高点までの高さ Ｈ [ｍ] ÷ １００
M33: + 空気抜きに必要な圧力
N34: （最低 ０．０３ＭＰａ）
K36: ７． | L36: 循環ポンプ揚程 | N36: 10 | O36: ｍ
K38: ８． | L38: 安全弁セット圧 | N38: 0.6 | O38: ＭＰａ・Ｇ
B41: 膨張タンク容量算定
B43: １、 | C43: タンク最低使用圧力： | E43: Ｐ１ | F43: ＝ | G43: =マクロ入出力値!C17 -> 補給水圧力 | N43: =マクロ入出力値!C13 -> 0.1 | O43: ＭＰａ・Ｇ
B45: ２． | C45: タンク最高使用圧力： | E45: Ｐ２ | F45: ＝ | G45: =マクロ入出力値!C18 -> 安全弁セット圧 - 循環ポンプ揚程 | N45: =マクロ入出力値!C14 -> 0.5 | O45: ＭＰａ・Ｇ
B47: ３． | C47: 膨張水量： | E47: ＶＥ | F47: ＝ | G47: ＶＳ（システム全水量） × ε（膨張係数）
F49: ＝ | H49: =N16 -> 5000 | K49: × | L49: =ROUND(IF(N17="不凍液50%",膨張係数!K12,膨張係数!D12),5) -> 0.01506
F51: ＝ | H51: =ROUND(H49*L49,1) -> 75.3 | K51: ㍑
B53: ４． | C53: タ ン ク 総 容 量 ： | E53: Ｖ | F53: ＝ | H53: ＶＥ
H54: 1 － | L54: Ｐ１＋0.1
L55: Ｐ２＋0.1
F57: ＝ | H57: =H51 -> 75.3
H58: 1 － | L58: =N43 -> 0.1 | M58: ＋ 0.1
L59: =N45 -> 0.5 | M59: ＋ 0.1
F61: ＝ | H61: =IF(N43=N45,0,H57/(1-(L58+0.1)/(L59+0.1))) -> 112.95 | K61: ㍑
B63: ５． | C63: 型 式 の 決 定
C65: 選定型式 | F65: 容量 | L65: 最高使用圧力／最高使用温度
C66: BFA-170NX(第二種圧力容器) | F66: =VLOOKUP(C66,タンク基礎データ!B4:F72,3,FALSE) -> 総容量：170㍑、最大吸収容量：136㍑ | L66: =VLOOKUP(C66,タンク基礎データ!B4:F72,4,FALSE) -> 最高使用圧力：0.6ＭＰａ、最高使用温度：95℃
B67: 2 | C67: =IF($N$12="給湯用",OFFSET(タンク基礎データ!B$3,タンク基礎データ!Q5,0),OFFSET(タンク基礎データ!B$49,タンク基礎データ!#REF!,0)) -> AFX-200NX(第二種圧力容器) | F67: =IF($N$12="給湯用",OFFSET(タンク基礎データ!B$3,タンク基礎データ!Q5,2),OFFSET(タンク基礎データ!B$49,タンク基礎データ!#REF!,2)) -> 総容量：220㍑、最大吸収容量：176㍑ | L67: =IF($N$12="給湯用",OFFSET(タンク基礎データ!B$3,タンク基礎データ!Q5,3),OFFSET(タンク基礎データ!B$49,タンク基礎データ!#REF!,3)) -> 最高使用圧力：0.8ＭＰａ、最高使用温度：95℃
C69: 空気封入圧力： | E69: =N43 -> 0.1 | F69: ＭＰａ・Ｇ
B71: 備考

Sheet 変更履歴 (hidden)
A1: 日付 | B1: 内容 | C1: 担当
A2: 2014-10-25 | B2: カタログ改定に伴い、選定される機種を変更 | C2: 岡部
A3: 2015-01-09 | B3: ソフトのバージョンによって？右肩のブランドマークが印刷時に拡大される対策 | C3: 藤井
A4: 2015-05-30 | B4: AC対応 | C4: 山本真
A5: 2016-03-01 | B5: 0.8MPa.0.6MPa仕様に変更(BFA-12N-210N、AFX、AFU） | C5: 山本真
A6: 2018-01-15 | B6: 構造規格変更による改訂。全て0.8MPa.0.6MPa仕様に変更 AFX-60-100,AFU-3000-5000追加 | C6: 山本真
A7: 2018-11-16 | B7: HM-24：重量、本体高さ、最大吸収容量変更 HM-60：削除 | C7: 堀
A8: 2018-12-18 | B8: HM-8,18,50,100：追加 | C8: 堀
A9: 2021-06-24 | B9: AC廃番につき選択不可とした | C9: 堀
A10: 2022-02-01 | B10: 選定書計算式変更(L49,H51,H61) | C10: 堀
A11: 2022-02-28 | B11: マクロ入出力値シート再表示不可に設定 | C11: 堀
A12: 2022-07-13 | B12: BFA-12NX～80NX廃番につき選択不可とした | C12: 堀
A13: 2022-08-02 | B13: 宛先、件名、備考欄 縮小して全体を表示するとした | C13: 堀
A14: 2023-07-06 | B14: 選定型式選択可能に変更、エラーコード修正、輸入品→内作品 容量修正 | C14: 堀(若林)
A15: 2024-03-19 | B15: AFX-20NX、AFX-30NX追加、現行品データをカタログ値へ修正 | C15: 堀
A16: 2024-05-31 | B16: BFA型式変更(名称のみ)、カタログに合わせてimage修正 | C16: 堀

Sheet マクロ入出力値 (hidden)
B2: 入力値
B3: 給湯用､空調用の別 | C3: =選定書!N12 -> 給湯用
B4: システム全水量 | C4: =選定書!N16 -> 5000
B5: システム水初期温度 | C5: =選定書!N22 -> 5
B6: システム最高設定温度 | C6: =選定書!N24 -> 60
B7: 補給水圧力 | C7: =選定書!N26 -> 0.1
B8: 循環ポンプ揚程 | C8: =選定書!N36 -> 10
B9: 安全弁セット圧 | C9: =選定書!N38 -> 0.6
B10: 膨張係数 | C10: =選定書!L49 -> 0.01506
B12: 出力値
B13: 補給水圧力 | C13: 0.1
B14: 安全弁セット圧 | C14: 0.5
B15: 膨張水量 | C15: 75.5
B16: タンク総容量 | C16: 113.25
B17: P1計算式 | C17: 補給水圧力
B18: P2計算式 | C18: 安全弁セット圧 - 循環ポンプ揚程

Sheet タンク基礎データ (hidden)
B2: 密閉タンク基礎データ
B3: 型式 | C3: 寸法 | D3: 容量 | E3: 最高使用圧力／最高使用温度 | F3: 定価 | O3: =10^5 -> 100000
B4: AC-8 | C4: 寸法：φ205×335H、接続口径：20A | D4: 総容量：8㍑、最大吸収容量：5.3㍑ | E4: 最高使用圧力：0.49ＭＰａ、最高使用温度：95℃ | H4: 8 | I4: 5.3 | K4: =IF(AND(選定書!$H$61<=H4,選定書!$H$51<=I4,選定書!$N$38<=J4,選定書!$N$45<=J4),1,0) -> 0 | L4: =K4 -> 0 | M4: =IF(L4=1,1,0) -> 0 | N4: =M4 -> 0 | O4: =IF(選定書!$H$61*$O$3>H4,1,0) -> 1 | Q4: =MATCH(1,N4:N47,0) -> 20 | R4: =IF(選定書!$H$61<=0,"",OFFSET(B$3,Q4,0)) -> BFA-170NX(第二種圧力容器)
B5: AC-18 | C5: 寸法：φ270×455H、接続口径：25A | D5: 総容量：18㍑、最大吸収容量：11.4㍑ | E5: 最高使用圧力：0.49ＭＰａ、最高使用温度：95℃ | H5: 18 | I5: 11.4 | K5: =IF(AND(選定書!$H$61<=H5,選定書!$H$51<=I5,選定書!$N$38<=J5,選定書!$N$45<=J5),1,0) -> 0 | L5: =IF(K5<>0,L4+K5,0) -> 0 | M5: =IF(L5=1,1,0) -> 0 | N5: =N4+M5 -> 0 | O5: =IF(選定書!$H$61*$O$3>H5,1,0) -> 1 | Q5: =MATCH(2,N4:N47,0) -> 31 | R5: =IF(選定書!$H$61<=0,"",IF(OFFSET($O$3,Q5,0)=1,OFFSET(B$3,Q5,0),"")) -> AFX-200NX(第二種圧力容器)
B6: AC-24 | C6: 寸法：φ270×495H、接続口径：25A | D6: 総容量：24㍑、最大吸収容量：16.3㍑ | E6: 最高使用圧力：0.49ＭＰａ、最高使用温度：95℃ | H6: 24 | I6: 16.3 | K6: =IF(AND(選定書!$H$61<=H6,選定書!$H$51<=I6,選定書!$N$38<=J6,選定書!$N$45<=J6),1,0) -> 0 | L6: =IF(K6<>0,L5+K6,0) -> 0 | M6: =IF(L6=1,1,0) -> 0 | N6: =N5+M6 -> 0 | O6: =IF(選定書!$H$61*$O$3>H6,1,0) -> 1 | Q6: =MATCH(3,N4:N47,0) ->  | R6: =IF(選定書!$H$61<=0,"",IF(OFFSET($O$3,Q6,0)=1,OFFSET(B$3,Q6,0),"")) -> 
B7: AC-35 | C7: 寸法：φ400×436H、接続口径：25A | D7: 総容量：35㍑、最大吸収容量23.8：㍑ | E7: 最高使用圧力：0.49ＭＰａ、最高使用温度：95℃ | H7: 35 | I7: 23.8 | K7: =IF(AND(選定書!$H$61<=H7,選定書!$H$51<=I7,選定書!$N$38<=J7,選定書!$N$45<=J7),1,0) -> 0 | L7: 0 | M7: =IF(L7=1,1,0) -> 0 | N7: 0 | O7: =IF(選定書!$H$61*$O$3>H7,1,0) -> 1 | Q7: =MATCH(4,N4:N47,0) ->  | R7: =IF(選定書!$H$61<=0,"",IF(OFFSET($O$3,Q7,0)=1,OFFSET(B$3,Q7,0),"")) -> 
B8: AC-50 | C8: 寸法：φ400×600H、接続口径：25A | D8: 総容量：50㍑、最大吸収容量：30㍑ | E8: 最高使用圧力：0.20ＭＰａ、最高使用温度：95℃ | H8: 50 | I8: 30 | K8: =IF(AND(選定書!$H$61<=H8,選定書!$H$51<=I8,選定書!$N$38<=J8,選定書!$N$45<=J8),1,0) -> 0 | L8: 0 | M8: =IF(L8=1,1,0) -> 0 | N8: 0 | O8: =IF(選定書!$H$61*$O$3>H8,1,0) -> 1
N9: =N8+M9 -> 0
B10: JTX-80 | C10: 寸法：φ400×810H、接続口径：25A | D10: 総容量：80㍑、最大吸収容量50：㍑ | E10: 最高使用圧力：0.19ＭＰａ、最高使用温度：95℃ | H10: 80 | I10: 50 | J10: 0.19 | K10: =IF(AND(選定書!$H$61<=H10,選定書!$H$51<=I10,選定書!$N$38<=J10,選定書!$N$45<=J10),1,0) -> 0 | L10: 0 | M10: =IF(L10=1,1,0) -> 0 | N10: =N9+M10 -> 0 | O10: =IF(選定書!$H$61*$O$3>H10,1,0) -> 1
B11: JTX-100 | C11: 寸法：φ500×740H、接続口径：25A | D11: 総容量：100㍑、最大吸収容量：63㍑ | E11: 最高使用圧力：0.19ＭＰａ、最高使用温度：95℃ | H11: 100 | I11: 63 | J11: 0.19 | K11: =IF(AND(選定書!$H$61<=H11,選定書!$H$51<=I11,選定書!$N$38<=J11,選定書!$N$45<=J11),1,0) -> 0 | L11: 0 | M11: 0 | N11: 0 | O11: =IF(選定書!$H$61*$O$3>H11,1,0) -> 1
B12: JTX-150 | C12: 寸法：φ500×945H、接続口径：25A | D12: 総容量：150㍑、最大吸収容量：95㍑ | E12: 最高使用圧力：0.19ＭＰａ、最高使用温度：95℃ | H12: 150 | I12: 95 | J12: 0.19 | K12: =IF(AND(選定書!$H$61<=H12,選定書!$H$51<=I12,選定書!$N$38<=J12,選定書!$N$45<=J12),1,0) -> 0 | L12: 0 | M12: 0 | N12: 0 | O12: =IF(選定書!$H$61*$O$3>H12,1,0) -> 1
B13: JTX-200 | C13: 寸法：φ605×1035H、接続口径：32A | D13: 総容量：200㍑、最大吸収容量：126㍑ | E13: 最高使用圧力：0.19ＭＰａ、最高使用温度：95℃ | H13: 200 | I13: 126 | J13: 0.19 | K13: =IF(AND(選定書!$H$61<=H13,選定書!$H$51<=I13,選定書!$N$38<=J13,選定書!$N$45<=J13),1,0) -> 0 | L13: 0 | M13: 0 | N13: 0 | O13: =IF(選定書!$H$61*$O$3>H13,1,0) -> 1
B14: JTX-300 | C14: 寸法：φ650×1215H、接続口径：32A | D14: 総容量：300㍑、最大吸収容量：190㍑ | E14: 最高使用圧力：0.19ＭＰａ、最高使用温度：95℃ | H14: 300 | I14: 190 | J14: 0.19 | K14: =IF(AND(選定書!$H$61<=H14,選定書!$H$51<=I14,選定書!$N$38<=J14,選定書!$N$45<=J14),1,0) -> 0 | L14: 0 | M14: 0 | N14: 0 | O14: =IF(選定書!$H$61*$O$3>H14,1,0) -> 1
B15: JTX-500 | C15: 寸法：φ775×1400H、接続口径：32A | D15: 総容量：500㍑、最大吸収容量：315㍑ | E15: 最高使用圧力：0.20ＭＰａ、最高使用温度：95℃ | H15: 500 | I15: 315 | K15: =IF(AND(選定書!$H$61<=H15,選定書!$H$51<=I15,選定書!$N$38<=J15,選定書!$N$45<=J15),1,0) -> 0 | L15: 0 | M15: 0 | N15: 0 | O15: =IF(選定書!$H$61*$O$3>H15,1,0) -> 1
N16: 0
B17: BFA-12NX | C17: 寸法：φ305×430H、接続口径：20A | D17: 総容量：19㍑、最大吸収容量：12㍑ | E17: 最高使用圧力：0.8ＭＰａ、最高使用温度：95℃ | H17: 19 | I17: 12 | K17: =IF(AND(選定書!$H$61<=H17,選定書!$H$51<=I17,選定書!$N$38<=J17,選定書!$N$45<=J17),1,0) -> 0 | L17: 0 | M17: =IF(L17=1,1,0) -> 0 | N17: 0 | O17: =IF(選定書!$H$61*$O$3>H17,1,0) -> 1
B18: BFA-20NX | C18: 寸法：φ305×550H、接続口径：20A | D18: 総容量：30㍑、最大吸収容量：12㍑ | E18: 最高使用圧力：0.8ＭＰａ、最高使用温度：95℃ | H18: 30 | I18: 12 | K18: =IF(AND(選定書!$H$61<=H18,選定書!$H$51<=I18,選定書!$N$38<=J18,選定書!$N$45<=J18),1,0) -> 0 | L18: 0 | M18: 0 | N18: 0 | O18: =IF(選定書!$H$61*$O$3>H18,1,0) -> 1
B19: BFA-30NX(第二種圧力容器) | C19: 寸法：φ356×720H、接続口径：25A | D19: 総容量：56㍑、最大吸収容量：40㍑ | E19: 最高使用圧力：0.8ＭＰａ、最高使用温度：95℃ | H19: 56 | I19: 40 | K19: =IF(AND(選定書!$H$61<=H19,選定書!$H$51<=I19,選定書!$N$38<=J19,選定書!$N$45<=J19),1,0) -> 0 | L19: 0 | M19: 0 | N19: 0 | O19: =IF(選定書!$H$61*$O$3>H19,1,0) -> 1
B20: BFA-42NX(第二種圧力容器) | C20: 寸法：φ406×860H、接続口径：25A | D20: 総容量：90㍑、最大吸収容量：59㍑ | E20: 最高使用圧力：0.8ＭＰａ、最高使用温度：95℃ | H20: 90 | I20: 59 | K20: =IF(AND(選定書!$H$61<=H20,選定書!$H$51<=I20,選定書!$N$38<=J20,選定書!$N$45<=J20),1,0) -> 0 | L20: 0 | M20: 0 | N20: 0 | O20: =IF(選定書!$H$61*$O$3>H20,1,0) -> 1
B21: BFA-60NX(第二種圧力容器) | C21: 寸法：φ406×930H、接続口径：25A | D21: 総容量：99㍑、最大吸収容量：59㍑ | E21: 最高使用圧力：0.8ＭＰａ、最高使用温度：95℃ | H21: 99 | I21: 59 | K21: =IF(AND(選定書!$H$61<=H21,選定書!$H$51<=I21,選定書!$N$38<=J21,選定書!$N$45<=J21),1,0) -> 0 | L21: 0 | M21: 0 | N21: 0 | O21: =IF(選定書!$H$61*$O$3>H21,1,0) -> 1
B22: BFA-80NX(第二種圧力容器) | C22: 寸法：φ406×1200H、接続口径：25A | D22: 総容量：133㍑、最大吸収容量：59㍑ | E22: 最高使用圧力：0.8ＭＰａ、最高使用温度：95℃ | H22: 133 | I22: 59 | K22: =IF(AND(選定書!$H$61<=H22,選定書!$H$51<=I22,選定書!$N$38<=J22,選定書!$N$45<=J22),1,0) -> 0 | L22: 0 | M22: 0 | N22: 0 | O22: =IF(選定書!$H$61*$O$3>H22,1,0) -> 1
B23: BFA-170NX(第二種圧力容器) | C23: 寸法：φ506.4×1156H、接続口径：25A | D23: 総容量：170㍑、最大吸収容量：136㍑ | E23: 最高使用圧力：0.6ＭＰａ、最高使用温度：95℃ | H23: 170 | I23: 136 | J23: 0.6 | K23: =IF(AND(選定書!$H$61<=H23,選定書!$H$51<=I23,選定書!$N$38<=J23,選定書!$N$45<=J23),1,0) -> 1 | L23: 1 | M23: 1 | N23: 1 | O23: =IF(選定書!$H$61*$O$3>H23,1,0) -> 1
B24: BFA-220NX(第二種圧力容器) | C24: 寸法：φ506.4×1436H、接続口径：25A | D24: 総容量：220㍑、最大吸収容量：181㍑ | E24: 最高使用圧力：0.6ＭＰａ、最高使用温度：95℃ | H24: 220 | I24: 181 | J24: 0.6 | K24: =IF(AND(選定書!$H$61<=H24,選定書!$H$51<=I24,選定書!$N$38<=J24,選定書!$N$45<=J24),1,0) -> 1 | L24: 2 | M24: 0 | N24: 1 | O24: =IF(選定書!$H$61*$O$3>H24,1,0) -> 1
B25: BFA-290NX(第二種圧力容器) | C25: 寸法：φ609×1344H、接続口径：32A | D25: 総容量：290㍑、最大吸収容量：236㍑ | E25: 最高使用圧力：0.6ＭＰａ、最高使用温度：95℃ | H25: 290 | I25: 236 | J25: 0.6 | K25: =IF(AND(選定書!$H$61<=H25,選定書!$H$51<=I25,選定書!$N$38<=J25,選定書!$N$45<=J25),1,0) -> 1 | L25: 3 | M25: 0 | N25: 1 | O25: =IF(選定書!$H$61*$O$3>H25,1,0) -> 1
B26: BFA-320NX(第二種圧力容器) | C26: 寸法：φ609×1424H、接続口径：32A | D26: 総容量：320㍑、最大吸収容量：250㍑ | E26: 最高使用圧力：0.6ＭＰａ、最高使用温度：95℃ | H26: 320 | I26: 250 | J26: 0.6 | K26: =IF(AND(選定書!$H$61<=H26,選定書!$H$51<=I26,選定書!$N$38<=J26,選定書!$N$45<=J26),1,0) -> 1 | L26: 4 | M26: 0 | N26: 1 | O26: =IF(選定書!$H$61*$O$3>H26,1,0) -> 1
B27: BFA-340NX(第二種圧力容器) | C27: 寸法：φ609×1494H、接続口径：32A | D27: 総容量：340㍑、最大吸収容量：270㍑ | E27: 最高使用圧力：0.6ＭＰａ、最高使用温度：95℃ | H27: 340 | I27: 270 | J27: 0.6 | K27: =IF(AND(選定書!$H$61<=H27,選定書!$H$51<=I27,選定書!$N$38<=J27,選定書!$N$45<=J27),1,0) -> 1 | L27: 5 | M27: 0 | N27: 1 | O27: =IF(選定書!$H$61*$O$3>H27,1,0) -> 1
N28: 1
B29: AFX-20NX | C29: 寸法：φ305×419H、接続口径：25A | D29: 総容量：20㍑、最大吸収容量：16㍑ | E29: 最高使用圧力：1.0ＭＰａ、最高使用温度：95℃ | H29: 20 | I29: 16 | J29: 1 | K29: =IF(AND(選定書!$H$61<=H29,選定書!$H$51<=I29,選定書!$N$38<=J29,選定書!$N$45<=J29),1,0) -> 0 | L29: =IF(K29<>0,L28+K29,0) -> 0 | M29: =IF(L29=1,1,0) -> 0 | N29: =N28+M29 -> 1 | O29: =IF(選定書!$H$61*$O$3>H29,1,0) -> 1
B30: AFX-30NX | C30: 寸法：φ305×559H、接続口径：25A | D30: 総容量：30㍑、最大吸収容量：24㍑ | E30: 最高使用圧力：1.0ＭＰａ、最高使用温度：95℃ | H30: 30 | I30: 24 | J30: 1 | K30: =IF(AND(選定書!$H$61<=H30,選定書!$H$51<=I30,選定書!$N$38<=J30,選定書!$N$45<=J30),1,0) -> 0 | L30: 0 | M30: =IF(L30=1,1,0) -> 0 | N30: 1 | O30: =IF(選定書!$H$61*$O$3>H30,1,0) -> 1
B31: AFX-60NX(第二種圧力容器) | C31: 寸法：φ400×758H、接続口径：25A | D31: 総容量：60㍑、最大吸収容量：48㍑ | E31: 最高使用圧力：0.8ＭＰａ、最高使用温度：95℃ | H31: 60 | I31: 48 | J31: 0.8 | K31: =IF(AND(選定書!$H$61<=H31,選定書!$H$51<=I31,選定書!$N$38<=J31,選定書!$N$45<=J31),1,0) -> 0 | L31: 0 | M31: =IF(L31=1,1,0) -> 0 | N31: 1 | O31: =IF(選定書!$H$61*$O$3>H31,1,0) -> 1
B32: AFX-80NX(第二種圧力容器) | C32: 寸法：φ450×807H、接続口径：25A | D32: 総容量：80㍑、最大吸収容量：64㍑ | E32: 最高使用圧力：0.8ＭＰａ、最高使用温度：95℃ | H32: 80 | I32: 64 | J32: 0.8 | K32: =IF(AND(選定書!$H$61<=H32,選定書!$H$51<=I32,選定書!$N$38<=J32,選定書!$N$45<=J32),1,0) -> 0 | L32: 0 | M32: =IF(L32=1,1,0) -> 0 | N32: 1 | O32: =IF(選定書!$H$61*$O$3>H32,1,0) -> 1
B33: AFX-100NX(第二種圧力容器) | C33: 寸法：φ500×860H、接続口径：25A | D33: 総容量：100㍑、最大吸収容量：87㍑ | E33: 最高使用圧力：0.8ＭＰａ、最高使用温度：95℃ | H33: 100 | I33: 87 | J33: 0.8 | K33: =IF(AND(選定書!$H$61<=H33,選定書!$H$51<=I33,選定書!$N$38<=J33,選定書!$N$45<=J33),1,0) -> 0 | L33: 0 | M33: 0 | N33: 1 | O33: =IF(選定書!$H$61*$O$3>H33,1,0) -> 1
B34: AFX-200NX(第二種圧力容器) | C34: 寸法：φ600×1119H、接続口径：25A | D34: 総容量：220㍑、最大吸収容量：176㍑ | E34: 最高使用圧力：0.8ＭＰａ、最高使用温度：95℃ | H34: 220 | I34: 176 | J34: 0.8 | K34: =IF(AND(選定書!$H$61<=H34,選定書!$H$51<=I34,選定書!$N$38<=J34,選定書!$N$45<=J34),1,0) -> 1 | L34: 1 | M34: 1 | N34: 2 | O34: =IF(選定書!$H$61*$O$3>H34,1,0) -> 1
B35: AFX-300NX(第二種圧力容器) | C35: 寸法：φ600×1422H、接続口径：25A | D35: 総容量：300㍑、最大吸収容量：246㍑ | E35: 最高使用圧力：0.8ＭＰａ、最高使用温度：95℃ | H35: 300 | I35: 246 | J35: 0.8 | K35: =IF(AND(選定書!$H$61<=H35,選定書!$H$51<=I35,選定書!$N$38<=J35,選定書!$N$45<=J35),1,0) -> 1 | L35: 2 | M35: 0 | N35: =N34+M35 -> 2 | O35: =IF(選定書!$H$61*$O$3>H35,1,0) -> 1
B36: AFX-400NX(第二種圧力容器) | C36: 寸法：φ750×1276H、接続口径：25A | D36: 総容量：400㍑、最大吸収容量：320㍑ | E36: 最高使用圧力：0.8ＭＰａ、最高使用温度：95℃ | H36: 400 | I36: 320 | J36: 0.8 | K36: =IF(AND(選定書!$H$61<=H36,選定書!$H$51<=I36,選定書!$N$38<=J36,選定書!$N$45<=J36),1,0) -> 1 | L36: 3 | M36: 0 | N36: 2 | O36: =IF(選定書!$H$61*$O$3>H36,1,0) -> 1
B37: AFX-500NX(第二種圧力容器) | C37: 寸法：φ750×1495H、接続口径：25A | D37: 総容量：500㍑、最大吸収容量：401㍑ | E37: 最高使用圧力：0.8ＭＰａ、最高使用温度：95℃ | H37: 500 | I37: 401 | J37: 0.8 | K37: =IF(AND(選定書!$H$61<=H37,選定書!$H$51<=I37,選定書!$N$38<=J37,選定書!$N$45<=J37),1,0) -> 1 | L37: 4 | M37: 0 | N37: 2 | O37: =IF(選定書!$H$61*$O$3>H37,1,0) -> 1
B38: AFX-600NX(第二種圧力容器) | C38: 寸法：φ750×1723H、接続口径：40A | D38: 総容量：600.㍑、最大吸収容量：480㍑ | E38: 最高使用圧力：0.8ＭＰａ、最高使用温度：95℃ | H38: 600 | I38: 480 | J38: 0.8 | K38: =IF(AND(選定書!$H$61<=H38,選定書!$H$51<=I38,選定書!$N$38<=J38,選定書!$N$45<=J38),1,0) -> 1 | L38: 5 | M38: 0 | N38: 2 | O38: =IF(選定書!$H$61*$O$3>H38,1,0) -> 1
B39: AFX-800NX(第二種圧力容器) | C39: 寸法：φ800×1909H、接続口径：40A | D39: 総容量：800㍑、最大吸収容量：640㍑ | E39: 最高使用圧力：0.8ＭＰａ、最高使用温度：95℃ | H39: 800 | I39: 640 | J39: 0.8 | K39: =IF(AND(選定書!$H$61<=H39,選定書!$H$51<=I39,選定書!$N$38<=J39,選定書!$N$45<=J39),1,0) -> 1 | L39: 6 | M39: 0 | N39: 2 | O39: =IF(選定書!$H$61*$O$3>H39,1,0) -> 1
B40: AFX-1000NX(第二種圧力容器) | C40: 寸法：φ900×2209H、接続口径：40A | D40: 総容量：1000㍑、最大吸収容量：800㍑ | E40: 最高使用圧力：0.8ＭＰａ、最高使用温度：95℃ | H40: 1000 | I40: 800 | J40: 0.8 | K40: =IF(AND(選定書!$H$61<=H40,選定書!$H$51<=I40,選定書!$N$38<=J40,選定書!$N$45<=J40),1,0) -> 1 | L40: 7 | M40: 0 | N40: 2 | O40: =IF(選定書!$H$61*$O$3>H40,1,0) -> 1
B41: AFX-1200NX(第二種圧力容器) | C41: 寸法：φ900×2524H、接続口径：40A | D41: 総容量：1200㍑、最大吸収容量：960㍑ | E41: 最高使用圧力：0.8ＭＰａ、最高使用温度：95℃ | H41: 1200 | I41: 960 | J41: 0.8 | K41: =IF(AND(選定書!$H$61<=H41,選定書!$H$51<=I41,選定書!$N$38<=J41,選定書!$N$45<=J41),1,0) -> 1 | L41: =IF(K41<>0,L40+K41,0) -> 8 | M41: 0 | N41: 2 | O41: =IF(選定書!$H$61*$O$3>H41,1,0) -> 1
B42: AFX-1400NX(第二種圧力容器) | C42: 寸法：φ900×2839H、接続口径：40A | D42: 総容量：1400㍑、最大吸収容量：1120㍑ | E42: 最高使用圧力：0.8ＭＰａ、最高使用温度：95℃ | H42: 1400 | I42: 1120 | J42: 0.8 | K42: =IF(AND(選定書!$H$61<=H42,選定書!$H$51<=I42,選定書!$N$38<=J42,選定書!$N$45<=J42),1,0) -> 1 | L42: 9 | M42: 0 | N42: 2 | O42: =IF(選定書!$H$61*$O$3>H42,1,0) -> 1
B43: AFX-1600NX(第二種圧力容器) | C43: 寸法：φ1200×2185H、接続口径：50A | D43: 総容量：1600㍑、最大吸収容量：1280㍑ | E43: 最高使用圧力：0.8ＭＰａ、最高使用温度：95℃ | H43: 1600 | I43: 1280 | J43: 0.8 | K43: =IF(AND(選定書!$H$61<=H43,選定書!$H$51<=I43,選定書!$N$38<=J43,選定書!$N$45<=J43),1,0) -> 1 | L43: 10 | M43: 0 | N43: 2 | O43: =IF(選定書!$H$61*$O$3>H43,1,0) -> 1
B44: AFX-2000NX(第二種圧力容器) | C44: 寸法：φ1200×2535H、接続口径：50A | D44: 総容量：2000㍑、最大吸収容量：1600㍑ | E44: 最高使用圧力：0.8ＭＰａ、最高使用温度：95℃ | H44: 2000 | I44: 1600 | J44: 0.8 | K44: =IF(AND(選定書!$H$61<=H44,選定書!$H$51<=I44,選定書!$N$38<=J44,選定書!$N$45<=J44),1,0) -> 1 | L44: 11 | M44: 0 | N44: 2 | O44: =IF(選定書!$H$61*$O$3>H44,1,0) -> 1
B45: AFX-3000NX(第二種圧力容器) | C45: 寸法：φ1200×3437H、接続口径：50A | D45: 総容量：3010㍑、最大吸収容量：2400㍑ | E45: 最高使用圧力：0.8ＭＰａ、最高使用温度：95℃ | H45: 3010 | I45: 2400 | J45: 0.8 | K45: =IF(AND(選定書!$H$61<=H45,選定書!$H$51<=I45,選定書!$N$38<=J45,選定書!$N$45<=J45),1,0) -> 1 | L45: 12 | M45: 0 | N45: 2 | O45: =IF(選定書!$H$61*$O$3>H45,1,0) -> 1
B46: AFX-4000NX(第二種圧力容器) | C46: 寸法：φ1500×3081H、接続口径：50A | D46: 総容量：4000㍑、最大吸収容量：3200㍑ | E46: 最高使用圧力：0.8ＭＰａ、最高使用温度：95℃ | H46: 4000 | I46: 3200 | J46: 0.8 | K46: =IF(AND(選定書!$H$61<=H46,選定書!$H$51<=I46,選定書!$N$38<=J46,選定書!$N$45<=J46),1,0) -> 1 | L46: 13 | M46: 0 | N46: 2 | O46: =IF(選定書!$H$61*$O$3>H46,1,0) -> 1
B47: AFX-5000NX(第二種圧力容器) | C47: 寸法：φ1500×3681H、接続口径：50A | D47: 総容量：5060㍑、最大吸収容量：4040㍑ | E47: 最高使用圧力：0.8ＭＰａ、最高使用温度：95℃ | H47: 5060 | I47: 4040 | J47: 0.8 | K47: =IF(AND(選定書!$H$61<=H47,選定書!$H$51<=I47,選定書!$N$38<=J47,選定書!$N$45<=J47),1,0) -> 1 | L47: 14 | M47: 0 | N47: 2 | O47: =IF(選定書!$H$61*$O$3>H47,1,0) -> 1
B50: HM-8 | C50: 寸法：φ200×340H、接続口径：20A | D50: 総容量：8㍑、最大吸収容量：6.4㍑ | E50: 最高使用圧力：0.49ＭＰａ、最高使用温度：95℃ | H50: 8 | I50: 6.4 | J50: 0.49 | K50: =IF(AND(選定書!$H$61<=H50,選定書!$H$51<=I50,選定書!$N$38<=J50,選定書!$N$45<=J50),1,0) -> 0 | L50: =K50 -> 0 | M50: =IF(L50=1,1,0) -> 0 | N50: =M50 -> 0 | O50: =IF(選定書!$H$61*$O$3>H50,1,0) -> 1 | Q50: =MATCH(1,N50:N72,0) -> 10 | R50: =IF(選定書!$H$61<=0,"",OFFSET(B$49,Q50,0)) -> AFU-200NX(第二種圧力容器)
B51: HM-18 | C51: 寸法：φ270×390H、接続口径：25A | D51: 総容量：18㍑、最大吸収容量：14.4㍑ | E51: 最高使用圧力：0.49ＭＰａ、最高使用温度：95℃ | H51: 18 | I51: 14.4 | J51: 0.49 | K51: =IF(AND(選定書!$H$61<=H51,選定書!$H$51<=I51,選定書!$N$38<=J51,選定書!$N$45<=J51),1,0) -> 0 | L51: =IF(K51<>0,L50+K51,0) -> 0 | M51: =IF(L51=1,1,0) -> 0 | N51: =N50+M51 -> 0 | O51: =IF(選定書!$H$61*$O$3>H51,1,0) -> 1 | Q51: =MATCH(2,N50:N72,0) ->  | R51: =IF(選定書!$H$61<=0,"",IF(OFFSET($O$3,Q51,0)=1,OFFSET(B$49,Q51,0),"")) -> 
B52: HM-24 | C52: 寸法：φ270×510H、接続口径：25A | D52: 総容量：24㍑、最大吸収容量：19.2㍑ | E52: 最高使用圧力：0.49ＭＰａ、最高使用温度：95℃ | H52: 24 | I52: 19.2 | J52: 0.49 | K52: =IF(AND(選定書!$H$61<=H52,選定書!$H$51<=I52,選定書!$N$38<=J52,選定書!$N$45<=J52),1,0) -> 0 | L52: 0 | M52: 0 | N52: 0 | O52: =IF(選定書!$H$61*$O$3>H52,1,0) -> 1
B53: HM-50 | C53: 寸法：φ365×730H、接続口径：25A | D53: 総容量：50㍑、最大吸収容量：30㍑ | E53: 最高使用圧力：0.19ＭＰａ、最高使用温度：95℃ | H53: 50 | I53: 30 | J53: 0.19 | K53: =IF(AND(選定書!$H$61<=H53,選定書!$H$51<=I53,選定書!$N$38<=J53,選定書!$N$45<=J53),1,0) -> 0 | L53: 0 | M53: 0 | N53: 0 | O53: =IF(選定書!$H$61*$O$3>H53,1,0) -> 1
B54: HM-100 | C54: 寸法：φ495×820H、接続口径：25A | D54: 総容量：100㍑、最大吸収容量：60㍑ | E54: 最高使用圧力：0.19ＭＰａ、最高使用温度：95℃ | H54: 100 | I54: 60 | J54: 0.19 | K54: =IF(AND(選定書!$H$61<=H54,選定書!$H$51<=I54,選定書!$N$38<=J54,選定書!$N$45<=J54),1,0) -> 0 | L54: 0 | M54: 0 | N54: 0 | O54: =IF(選定書!$H$61*$O$3>H54,1,0) -> 1
N55: 0
B56: AFU-60NX(第二種圧力容器) | C56: 寸法：φ400×758H、接続口径：25A | D56: 総容量：60㍑、最大吸収容量：48㍑ | E56: 最高使用圧力：0.8ＭＰａ、最高使用温度：95℃ | H56: 60 | I56: 48 | J56: 0.8 | K56: =IF(AND(選定書!$H$61<=H56,選定書!$H$51<=I56,選定書!$N$38<=J56,選定書!$N$45<=J56),1,0) -> 0 | L56: =IF(K56<>0,L55+K56,0) -> 0 | M56: =IF(L56=1,1,0) -> 0 | N56: 0 | O56: =IF(選定書!$H$61*$O$3>H56,1,0) -> 1
B57: AFU-80NX(第二種圧力容器) | C57: 寸法：φ450×804H、接続口径：25A | D57: 総容量：80㍑、最大吸収容量：64㍑ | E57: 最高使用圧力：0.8ＭＰａ、最高使用温度：95℃ | H57: 80 | I57: 64 | J57: 0.8 | K57: =IF(AND(選定書!$H$61<=H57,選定書!$H$51<=I57,選定書!$N$38<=J57,選定書!$N$45<=J57),1,0) -> 0 | L57: =IF(K57<>0,L56+K57,0) -> 0 | M57: 0 | N57: =N56+M57 -> 0 | O57: =IF(選定書!$H$61*$O$3>H57,1,0) -> 1
B58: AFU-100NX(第二種圧力容器) | C58: 寸法：φ500×857H、接続口径：25A | D58: 総容量：109㍑、最大吸収容量：87㍑ | E58: 最高使用圧力：0.8ＭＰａ、最高使用温度：95℃ | H58: 109 | I58: 87 | J58: 0.8 | K58: =IF(AND(選定書!$H$61<=H58,選定書!$H$51<=I58,選定書!$N$38<=J58,選定書!$N$45<=J58),1,0) -> 0 | L58: 0 | M58: =IF(L58=1,1,0) -> 0 | N58: 0 | O58: =IF(選定書!$H$61*$O$3>H58,1,0) -> 1
B59: AFU-200NX(第二種圧力容器) | C59: 寸法：φ600×1111H、接続口径：25A | D59: 総容量：208㍑、最大吸収容量：165㍑ | E59: 最高使用圧力：0.8ＭＰａ、最高使用温度：95℃ | H59: 208 | I59: 165 | J59: 0.8 | K59: =IF(AND(選定書!$H$61<=H59,選定書!$H$51<=I59,選定書!$N$38<=J59,選定書!$N$45<=J59),1,0) -> 1 | L59: =IF(K59<>0,L58+K59,0) -> 1 | M59: 1 | N59: 1 | O59: =IF(選定書!$H$61*$O$3>H59,1,0) -> 1
B60: AFU-300NX(第二種圧力容器) | C60: 寸法：φ600×1438H、接続口径：25A | D60: 総容量：300㍑、最大吸収容量：240㍑ | E60: 最高使用圧力：0.8ＭＰａ、最高使用温度：95℃ | H60: 300 | I60: 240 | J60: 0.8 | K60: =IF(AND(選定書!$H$61<=H60,選定書!$H$51<=I60,選定書!$N$38<=J60,選定書!$N$45<=J60),1,0) -> 1 | L60: 2 | M60: 0 | N60: 1 | O60: =IF(選定書!$H$61*$O$3>H60,1,0) -> 1
B61: AFU-400NX(第二種圧力容器) | C61: 寸法：φ750×1309H、接続口径：25A | D61: 総容量：400㍑、最大吸収容量：320㍑ | E61: 最高使用圧力：0.8ＭＰａ、最高使用温度：95℃ | H61: 400 | I61: 320 | J61: 0.8 | K61: =IF(AND(選定書!$H$61<=H61,選定書!$H$51<=I61,選定書!$N$38<=J61,選定書!$N$45<=J61),1,0) -> 1 | L61: 3 | M61: 0 | N61: 1 | O61: =IF(選定書!$H$61*$O$3>H61,1,0) -> 1
B62: AFU-500NX(第二種圧力容器) | C62: 寸法：φ750×1528H、接続口径：25A | D62: 総容量：500㍑、最大吸収容量：400㍑ | E62: 最高使用圧力：0.8ＭＰａ、最高使用温度：95℃ | H62: 500 | I62: 400 | J62: 0.8 | K62: =IF(AND(選定書!$H$61<=H62,選定書!$H$51<=I62,選定書!$N$38<=J62,選定書!$N$45<=J62),1,0) -> 1 | L62: 4 | M62: 0 | N62: 1 | O62: =IF(選定書!$H$61*$O$3>H62,1,0) -> 1
B63: AFU-600NX(第二種圧力容器) | C63: 寸法：φ750×1754H、接続口径：40A | D63: 総容量：600㍑、最大吸収容量：480㍑ | E63: 最高使用圧力：0.8ＭＰａ、最高使用温度：95℃ | H63: 600 | I63: 480 | J63: 0.8 | K63: =IF(AND(選定書!$H$61<=H63,選定書!$H$51<=I63,選定書!$N$38<=J63,選定書!$N$45<=J63),1,0) -> 1 | L63: 5 | M63: 0 | N63: 1 | O63: =IF(選定書!$H$61*$O$3>H63,1,0) -> 1
B64: AFU-800NX(第二種圧力容器) | C64: 寸法：φ900×1656H、接続口径：40A | D64: 総容量：800㍑、最大吸収容量：640㍑ | E64: 最高使用圧力：0.8ＭＰａ、最高使用温度：95℃ | H64: 800 | I64: 640 | J64: 0.8 | K64: =IF(AND(選定書!$H$61<=H64,選定書!$H$51<=I64,選定書!$N$38<=J64,選定書!$N$45<=J64),1,0) -> 1 | L64: 6 | M64: 0 | N64: 1 | O64: =IF(選定書!$H$61*$O$3>H64,1,0) -> 1
B65: AFU-1000NX(第二種圧力容器) | C65: 寸法：φ900×2193H、接続口径：40A | D65: 総容量：1000㍑、最大吸収容量：800㍑ | E65: 最高使用圧力：0.8ＭＰａ、最高使用温度：95℃ | H65: 1000 | I65: 800 | J65: 0.8 | K65: =IF(AND(選定書!$H$61<=H65,選定書!$H$51<=I65,選定書!$N$38<=J65,選定書!$N$45<=J65),1,0) -> 1 | L65: 7 | M65: 0 | N65: 1 | O65: =IF(選定書!$H$61*$O$3>H65,1,0) -> 1
B66: AFU-1200NX(第二種圧力容器) | C66: 寸法：φ900×2508H、接続口径：40A | D66: 総容量：1200㍑、最大吸収容量：960㍑ | E66: 最高使用圧力：0.8ＭＰａ、最高使用温度：95℃ | H66: 1200 | I66: 960 | J66: 0.8 | K66: =IF(AND(選定書!$H$61<=H66,選定書!$H$51<=I66,選定書!$N$38<=J66,選定書!$N$45<=J66),1,0) -> 1 | L66: 8 | M66: 0 | N66: 1 | O66: =IF(選定書!$H$61*$O$3>H66,1,0) -> 1
B67: AFU-1400NX(第二種圧力容器) | C67: 寸法：φ900×2823H、接続口径：40A | D67: 総容量：1400㍑、最大吸収容量：1120㍑ | E67: 最高使用圧力：0.8ＭＰａ、最高使用温度：95℃ | H67: 1400 | I67: 1120 | J67: 0.8 | K67: =IF(AND(選定書!$H$61<=H67,選定書!$H$51<=I67,選定書!$N$38<=J67,選定書!$N$45<=J67),1,0) -> 1 | L67: 9 | M67: 0 | N67: 1 | O67: =IF(選定書!$H$61*$O$3>H67,1,0) -> 1
B68: AFU-1600NX(第二種圧力容器) | C68: 寸法：φ1200×2185H、接続口径：50A | D68: 総容量：1600㍑、最大吸収容量：1280㍑ | E68: 最高使用圧力：0.8ＭＰａ、最高使用温度：95℃ | H68: 1600 | I68: 1280 | J68: 0.8 | K68: =IF(AND(選定書!$H$61<=H68,選定書!$H$51<=I68,選定書!$N$38<=J68,選定書!$N$45<=J68),1,0) -> 1 | L68: 10 | M68: 0 | N68: 1 | O68: =IF(選定書!$H$61*$O$3>H68,1,0) -> 1
B69: AFU-2000NX(第二種圧力容器) | C69: 寸法：φ1200×2545H、接続口径：50A | D69: 総容量：2000㍑、最大吸収容量：1600㍑ | E69: 最高使用圧力：0.8ＭＰａ、最高使用温度：95℃ | H69: 2000 | I69: 1600 | J69: 0.8 | K69: =IF(AND(選定書!$H$61<=H69,選定書!$H$51<=I69,選定書!$N$38<=J69,選定書!$N$45<=J69),1,0) -> 1 | L69: 11 | M69: 0 | N69: 1 | O69: =IF(選定書!$H$61*$O$3>H69,1,0) -> 1
B70: AFU-3000NX(第二種圧力容器) | C70: 寸法：φ1200×3425H、接続口径：50A | D70: 総容量：3000㍑、最大吸収容量：2400㍑ | E70: 最高使用圧力：0.8ＭＰａ、最高使用温度：95℃ | H70: 3000 | I70: 2400 | J70: 0.8 | K70: =IF(AND(選定書!$H$61<=H70,選定書!$H$51<=I70,選定書!$N$38<=J70,選定書!$N$45<=J70),1,0) -> 1 | L70: =IF(K70<>0,L69+K70,0) -> 12 | M70: =IF(L70=1,1,0) -> 0 | N70: =N69+M70 -> 1 | O70: =IF(選定書!$H$61*$O$3>H70,1,0) -> 1
B71: AFU-4000NX(第二種圧力容器) | C71: 寸法：φ1500×3097H、接続口径：50A | D71: 総容量：4000㍑、最大吸収容量：3200㍑ | E71: 最高使用圧力：0.8ＭＰａ、最高使用温度：95℃ | H71: 4000 | I71: 3200 | J71: 0.8 | K71: =IF(AND(選定書!$H$61<=H71,選定書!$H$51<=I71,選定書!$N$38<=J71,選定書!$N$45<=J71),1,0) -> 1 | L71: =IF(K71<>0,L70+K71,0) -> 13 | M71: =IF(L71=1,1,0) -> 0 | N71: =N70+M71 -> 1 | O71: =IF(選定書!$H$61*$O$3>H71,1,0) -> 1
B72: AFU-5000NX(第二種圧力容器) | C72: 寸法：φ1500×3687H、接続口径：50A | D72: 総容量：5050㍑、最大吸収容量：4040㍑ | E72: 最高使用圧力：0.8ＭＰａ、最高使用温度：95℃ | H72: 5050 | I72: 4040 | J72: 0.8 | K72: =IF(AND(選定書!$H$61<=H72,選定書!$H$51<=I72,選定書!$N$38<=J72,選定書!$N$45<=J72),1,0) -> 1 | L72: =IF(K72<>0,L71+K72,0) -> 14 | M72: =IF(L72=1,1,0) -> 0 | N72: =N71+M72 -> 1 | O72: =IF(選定書!$H$61*$O$3>H72,1,0) -> 1

Sheet 膨張係数 (hidden)
B2: 水の膨張係数の計算 | I2: 不凍液（50%）の膨張係数の計算
M3: 不凍液（50%）
F4: 水の容積 | M4: の容積
B5: 最低使用温度℃ | D5: =選定書!N22 -> 5 | F5: ℃ | G5: 容積 | I5: 最低使用温度℃ | K5: =選定書!N22 -> 5 | M5: ℃ | N5: 容積
B6: 最高使用温度℃ | D6: =選定書!N24 -> 60 | F6: 0 | G6: 1.00013 | I6: 最高使用温度℃ | K6: =選定書!N24 -> 60 | M6: -10 | N6: =$J$26+$J$27*M6+$J$28*M6^2 -> 0.9283404
B7: 温度差 | D7: =D6-D5 -> 55 | F7: 1 | G7: 1.00007 | I7: 温度差 | K7: =K6-K5 -> 55 | M7: -9 | N7: 0.928669404
F8: 2 | G8: 1.00003 | M8: -8 | N8: 0.929002176
B9: 最低温度の水の容積 | D9: =IF(D5=D15,D16,D16+(D5-D15)/(D17-D15)*(D18-D16)) -> 1.00001 | F9: 3 | G9: 1.00001 | I9: 最低温度の水の容積 | K9: =IF(K5=K15,K16,K16+(K5-K15)/(K17-K15)*(K18-K16)) -> 0.9336711 | M9: -7 | N9: 0.929338716
B10: 最高温度の水の容積 | D10: =IF(D6=D19,D20,D20+(D6-D19)/(D21-D19)*(D22-D20)) -> 1.01705 | F10: 4 | G10: 1 | I10: 最高温度の水の容積 | K10: =IF(K6=K19,K20,K20+(K6-K19)/(K21-K19)*(K22-K20)) -> 0.9604704 | M10: -6 | N10: 0.929679024
F11: 5 | G11: 1.00001 | M11: -5 | N11: 0.9300231
B12: 膨張係数 | D12: =(D10/D9/(1+11.8*10^-6*D7)^3)-1 -> 0.01506222055 | F12: 6 | G12: 1.00003 | I12: 膨張係数 | K12: =J29*((K10/K9/(1+11.8*10^-6*K7)^3)-1) -> 0.03204343219 | M12: -4 | N12: 0.930370944
F13: 7 | G13: 1.00007 | M13: -3 | N13: 0.930722556
F14: 8 | G14: 1.00012 | M14: -2 | N14: 0.931077936
D15: =LOOKUP(D5,F$6:F$58,F$6:F$58) -> 5 | F15: 9 | G15: 1.00019 | K15: =LOOKUP(K5,M$6:M$68,M$6:M$68) -> 5 | M15: -1 | N15: 0.931437084
D16: =LOOKUP(D15,F$6:F$58,G$6:G$58) -> 1.00001 | F16: 10 | G16: 1.00027 | K16: =LOOKUP(K15,M$6:M$68,N$6:N$68) -> 0.9336711 | M16: 0 | N16: 0.9318
D17: =OFFSET($F$6,MATCH(D15,$F$6:$F$58,0),0,1,1) -> 6 | F17: 11 | G17: 1.00037 | K17: =OFFSET($M$6,MATCH(K15,$M$6:$M$68,0),0,1,1) -> 6 | M17: 1 | N17: 0.932166684
D18: =LOOKUP(D17,F$6:F$58,G$6:G$58) -> 1.00003 | F18: 12 | G18: 1.00048 | K18: =LOOKUP(K17,M$6:M$68,N$6:N$68) -> 0.934056624 | M18: 2 | N18: 0.932537136
D19: =LOOKUP(D6,F$6:F$58,F$6:F$58) -> 60 | F19: 13 | G19: 1.0006 | K19: =LOOKUP(K6,M$6:M$68,M$6:M$68) -> 60 | M19: 3 | N19: 0.932911356
D20: =LOOKUP(D19,F$6:F$58,G$6:G$58) -> 1.01705 | F20: 14 | G20: 1.00073 | K20: =LOOKUP(K19,M$6:M$68,N$6:N$68) -> 0.9604704 | M20: 4 | N20: 0.933289344
D21: =OFFSET($F$6,MATCH(D19,$F$6:$F$58,0),0,1,1) -> 65 | F21: 15 | G21: 1.00087 | K21: =OFFSET($M$6,MATCH(K19,$M$6:$M$68,0),0,1,1) -> 65 | M21: 5 | N21: 0.9336711
D22: =LOOKUP(D21,F$6:F$58,G$6:G$58) -> 1.01979 | F22: 16 | G22: 1.00103 | K22: =LOOKUP(K21,M$6:M$68,N$6:N$68) -> 0.9634719 | M22: 6 | N22: 0.934056624
F23: 17 | G23: 1.0012 | M23: 7 | N23: 0.934445916
F24: 18 | G24: 1.00138 | M24: 8 | N24: 0.934838976
F25: 19 | G25: 1.00157 | M25: 9 | N25: 0.935235804
F26: 20 | G26: 1.00177 | I26: a= | J26: 0.9318 | M26: 10 | N26: 0.9356364
F27: 21 | G27: 1.00199 | I27: b= | J27: 0.0003648 | M27: 11 | N27: 0.936040764
F28: 22 | G28: 1.00221 | I28: c= | J28: 1.884e-06 | M28: 12 | N28: 0.936448896
F29: 23 | G29: 1.00244 | I29: α= | J29: 1.2 | M29: 13 | N29: 0.936860796
F30: 24 | G30: 1.00269 | M30: 14 | N30: 0.937276464
F31: 25 | G31: 1.00294 | M31: 15 | N31: 0.9376959
F32: 26 | G32: 1.0032 | M32: 16 | N32: 0.938119104
F33: 27 | G33: 1.00347 | M33: 17 | N33: 0.938546076
F34: 28 | G34: 1.00375 | M34: 18 | N34: 0.938976816
F35: 29 | G35: 1.00405 | M35: 19 | N35: 0.939411324
F36: 30 | G36: 1.00435 | M36: 20 | N36: 0.9398496
F37: 31 | G37: 1.00466 | M37: 21 | N37: 0.940291644
F38: 32 | G38: 1.00497 | M38: 22 | N38: =$J$26+$J$27*M38+$J$28*M38^2 -> 0.940737456
F39: 33 | G39: 1.0053 | M39: 23 | N39: 0.941187036
F40: 34 | G40: 1.00563 | M40: 24 | N40: 0.941640384
F41: 35 | G41: 1.00598 | M41: 25 | N41: 0.9420975
F42: 36 | G42: 1.00633 | M42: 26 | N42: 0.942558384
F43: 37 | G43: 1.00669 | M43: 27 | N43: 0.943023036
F44: 38 | G44: 1.00706 | M44: 28 | N44: 0.943491456
F45: 39 | G45: 1.00743 | M45: 29 | N45: 0.943963644
F46: 40 | G46: 1.00782 | M46: 30 | N46: 0.9444396
F47: 45 | G47: 1.00985 | M47: 31 | N47: 0.944919324
F48: 50 | G48: 1.01207 | M48: 32 | N48: 0.945402816
F49: 55 | G49: 1.01448 | M49: 33 | N49: 0.945890076
F50: 60 | G50: 1.01705 | M50: 34 | N50: 0.946381104
F51: 65 | G51: 1.01979 | M51: 35 | N51: 0.9468759
F52: 70 | G52: 1.0227 | M52: 36 | N52: 0.947374464
F53: 75 | G53: 1.02576 | M53: 37 | N53: 0.947876796
F54: 80 | G54: 1.02899 | M54: 38 | N54: 0.948382896
F55: 85 | G55: 1.03237 | M55: 39 | N55: 0.948892764
F56: 90 | G56: 1.0359 | M56: 40 | N56: 0.9494064
F57: 95 | G57: 1.03959 | M57: 45 | N57: 0.9520311
F58: 100 | G58: 1.04343 | M58: 50 | N58: 0.95475
M59: 55 | N59: 0.9575631
M60: 60 | N60: 0.9604704
M61: 65 | N61: 0.9634719
M62: 70 | N62: 0.9665676
M63: 75 | N63: 0.9697575
M64: 80 | N64: 0.9730416
M65: 85 | N65: 0.9764199
M66: 90 | N66: 0.9798924
M67: 95 | N67: 0.9834591
M68: 100 | N68: 0.98712

Sheet image (hidden)
